fUST/lending_fUST_20250206
["ID","MTS","AMOUNT","RATE_DAILY","PERIOD"]
[351840855,1738812639180,-500.0,0.00013698,2]
[351840856,1738812639190,-501.81295853,0.00013698,2]
[351840857,1738812639199,-500.0,0.00013698,2]
[351840858,1738812639209,-503.61741668,0.00013698,2]
[351840859,1738812639219,-500.0,0.00013698,2]
[351840860,1738812639228,-500.0,0.00013698,2]
[351840861,1738812639238,-500.0,0.00013698,2]
[351840862,1738812639248,-504.16676045,0.00013698,2]
[351840863,1738812639258,-473.74347094,0.00013698,2]
[351840864,1738812639268,-500.0,0.00013698,2]
[351840865,1738812639278,-502.04264711,0.00013698,2]
[351840866,1738812639288,-327.3057249,0.00013698,2]
[351840867,1738812639297,-500.0,0.00013698,2]
[351840868,1738812639307,-511.01790898,0.00013698,2]
[351840869,1738812639316,-500.0,0.00013698,2]
[351840870,1738812639326,-500.0,0.00013698,2]
[351840871,1738812639336,-500.0,0.00013698,2]
[351840872,1738812639345,-500.0,0.00013698,2]
[351840873,1738812639355,-500.0,0.00013698,2]
[351840874,1738812639364,-500.0,0.00013698,2]
[351840875,1738812639374,-500.0,0.00013698,2]
[351840876,1738812639384,-502.33931398,0.00013698,2]
[351840877,1738812639394,-500.0,0.00013698,2]
[351840878,1738812639403,-500.0,0.00013698,2]
[351840879,1738812639413,-500.0,0.00013698,2]
[351840880,1738812639423,-313.21050478,0.00013698,2]
[351840881,1738812639433,-500.0,0.00013698,2]
[351840882,1738812639442,-500.0,0.00013698,2]
[351840883,1738812639453,-500.0,0.00013698,2]
[351840884,1738812639462,-358.65917763,0.00013698,2]
[351840885,1738812639471,-500.0,0.00013698,2]
[351840886,1738812639481,-500.0,0.00013698,2]
[351840887,1738812639490,-500.0,0.00013698,2]
[351840888,1738812639500,-507.04829703,0.00013698,2]
[351840889,1738812639510,-578.57,0.00013698,2]
[351840890,1738812639519,-500.0,0.00013698,2]
[351840892,1738812639529,-500.0,0.00013698,2]
[351840895,1738812639539,-501.43006752,0.00013698,2]
[351840897,1738812639549,-504.25473435,0.00013698,2]
[351840899,1738812639559,-500.0,0.00013698,2]
[351840901,1738812639568,-500.0,0.00013698,2]
[351840903,1738812639577,-612.22024344,0.00013698,2]
[351840905,1738812639591,-503.75467897,0.00013698,2]
[351840907,1738812639600,-500.0,0.00013698,2]
[351840908,1738812639610,-500.87630365,0.00013698,2]
[351840910,1738812639620,-500.0,0.00013698,2]
[351840912,1738812639629,-500.0,0.00013698,2]
[351840914,1738812639638,-500.0,0.00013698,2]
[351840916,1738812639648,-500.0,0.00013698,2]
[351840918,1738812639659,-224.53412437,0.00013698,2]
[351840920,1738812639669,-500.0,0.00013698,2]
[351840922,1738812639678,-500.0,0.00013698,2]
[351840924,1738812639688,-500.0,0.00013698,2]
[351840926,1738812639697,-500.0,0.00013698,2]
[351840928,1738812639707,-500.0,0.00013698,2]
[351840930,1738812639721,-500.0,0.00013698,2]
[351840931,1738812639730,-500.0,0.00013698,2]
[351840934,1738812639739,-500.0,0.00013698,2]
[351840937,1738812639748,-505.89393201,0.00013698,2]
[351840939,1738812639758,-500.0,0.00013698,2]
[351840941,1738812639767,-500.0,0.00013698,2]
[351840943,1738812639776,-500.0,0.00013698,2]
[351840945,1738812639787,-500.0,0.00013698,2]
[351840947,1738812639796,-512.2123169,0.00013698,2]
[351840949,1738812639805,-500.0,0.00013698,2]
[351840950,1738812639814,-500.0,0.00013698,2]
[351840951,1738812639823,-500.0,0.00013698,2]
[351840952,1738812639833,-500.0,0.00013698,2]
[351840953,1738812639842,-496.27072835,0.00013698,2]
[351840954,1738812639852,-460.19831029,0.00013698,2]
[351840955,1738812639861,-500.0,0.00013698,2]
[351840956,1738812639871,-503.5967691,0.00013698,2]
[351840958,1738812639882,-500.0,0.00013698,2]
[351840960,1738812639891,-500.0,0.00013698,2]
[351840962,1738812639901,-500.0,0.00013698,2]
[351840964,1738812639910,-500.0,0.00013698,2]
[351840966,1738812639921,-500.0,0.00013698,2]
[351840968,1738812639930,-501.90806868,0.00013698,2]
[351840970,1738812639939,-500.0,0.00013698,2]
[351840972,1738812639949,-500.0,0.00013698,2]
[351840974,1738812639959,-500.0,0.00013698,2]
[351840976,1738812639969,-1177.8,0.00013698,2]
[351840978,1738812639979,-500.0,0.00013698,2]
[351840980,1738812639990,-500.0,0.00013698,2]
[351840983,1738812640000,-505.27074711,0.00013698,2]
[351840985,1738812640009,-501.87035438,0.00013698,2]
[351840988,1738812640019,-557.23,0.00013698,2]
[351840991,1738812640028,-519.86851617,0.00013698,2]
[351840993,1738812640039,-500.0,0.00013698,2]
[351840995,1738812640049,-644.37540945,0.00013698,2]
[351840997,1738812640058,-500.0,0.00013698,2]
[351840999,1738812640067,-500.0,0.00013698,2]
[351841001,1738812640076,-506.06,0.00013698,2]
[351841003,1738812640086,-502.5502977,0.00013698,2]
[351841005,1738812640095,-500.0,0.00013698,2]
[351841006,1738812640105,-500.0,0.00013698,2]
[351841008,1738812640114,-304.71720517,0.00013698,2]
[351841010,1738812640124,-185.44803579,0.00013698,2]
[351841012,1738812640134,-628.96,0.00013698,2]
[351841014,1738812640143,-302.00352543,0.00013698,2]
[351841016,1738812640153,-559.68631539,0.00013698,2]
[351841018,1738812640162,-502.17102531,0.00013698,2]
[351841020,1738812640171,-502.20292469,0.00013698,2]
[351841022,1738812640180,-500.0,0.00013698,2]
[351841023,1738812640189,-1236.37,0.00013698,2]
[351841025,1738812640206,-500.0,0.00013698,2]
[351841027,1738812640228,-504.09717272,0.00013698,2]
[351841029,1738812640243,-279.87887217,0.00013698,2]
[351841031,1738812640252,-500.0,0.00013698,2]
[351841033,1738812640262,-365.39215376,0.00013698,2]
[351841035,1738812640272,-500.0,0.00013698,2]
[351841037,1738812640283,-500.0,0.00013698,2]
[351841039,1738812640292,-504.95700183,0.00013698,2]
[351841041,1738812640301,-864.67,0.00013698,2]
[351841043,1738812640310,-500.0,0.00013698,2]
[351841045,1738812640320,-1221.5,0.00013698,2]
[351841047,1738812640329,-500.0,0.00013698,2]
[351841049,1738812640339,-500.0,0.00013698,2]
[351841051,1738812640349,-500.0,0.00013698,2]
[351841053,1738812640359,-500.0,0.00013698,2]
[351841070,1738812640518,-500.0,0.00013698,2]
[351841072,1738812640528,-535.53,0.00013698,2]
[351841074,1738812640537,-517.21911658,0.00013698,2]
[351841076,1738812640547,-590.56,0.00013698,2]
[351841078,1738812640556,-503.20074739,0.00013698,2]
[351841080,1738812640566,-500.5,0.00013698,2]
[351841082,1738812640576,-500.0,0.00013698,2]
[351841084,1738812640585,-500.0,0.00013698,2]
[351841086,1738812640595,-500.0,0.00013698,2]
[351841088,1738812640604,-500.0,0.00013698,2]
[351841090,1738812640613,-1131.04,0.00013698,2]
[351841092,1738812640622,-807.32,0.00013698,2]
[351841094,1738812640631,-500.0,0.00013698,2]
[351841096,1738812640640,-678.28,0.00013698,2]
[351841098,1738812640650,-500.0,0.00013698,2]
[351841100,1738812640659,-500.0,0.00013698,2]
[351841102,1738812640669,-695.14,0.00013698,2]
[351841104,1738812640678,-500.0,0.00013698,2]
[351841106,1738812640688,-500.0,0.00013698,2]
[351841108,1738812640697,-500.0,0.00013698,2]
[351841110,1738812640707,-500.0,0.00013698,2]
[351841112,1738812640719,-397.14071428,0.00013698,2]
[351841114,1738812640728,-669.27,0.00013698,2]
[351841116,1738812640737,-500.0,0.00013698,2]
[351841118,1738812640746,-500.0,0.00013698,2]
[351841120,1738812640757,-504.57627174,0.00013698,2]
[351841122,1738812640767,-500.0,0.00013698,2]
[351841124,1738812640776,-585.14,0.00013698,2]
[351841126,1738812640785,-500.0,0.00013698,2]
[351841128,1738812640795,-500.0,0.00013698,2]
[351841130,1738812640805,-2119.05,0.00013698,2]
[351841132,1738812640814,-503.75422054,0.00013698,2]
[351841134,1738812640823,-501.67300395,0.00013698,2]
[351841136,1738812640832,-500.0,0.00013698,2]
[351841138,1738812640842,-741.75,0.00013698,2]
[351841140,1738812640851,-500.0,0.00013698,2]
[351841142,1738812640860,-500.0,0.00013698,2]
[351841144,1738812640870,-513.6334031,0.00013698,2]
[351841145,1738812640879,-500.0,0.00013698,2]
[351841146,1738812640888,-309.07352518,0.00013698,2]
[351841147,1738812640898,-2194.75,0.00013698,2]
[351841148,1738812640908,-500.0,0.00013698,2]
[351841150,1738812640918,-692.17,0.00013698,2]
[351841152,1738812640928,-500.0,0.00013698,2]
[351841154,1738812640937,-502.18523439,0.00013698,2]
[351841156,1738812640946,-500.0,0.00013698,2]
[351841158,1738812640956,-502.14271223,0.00013698,2]
[351841160,1738812640965,-500.0,0.00013698,2]
[351841162,1738812640974,-500.0,0.00013698,2]
[351841164,1738812640984,-914.4,0.00013698,2]
[351841167,1738812640993,-500.0,0.00013698,2]
[351841169,1738812641002,-508.76671154,0.00013698,2]
[351841170,1738812641012,-500.0,0.00013698,2]
[351841172,1738812641021,-500.0,0.00013698,2]
[351841174,1738812641030,-500.0,0.00013698,2]
[351841176,1738812641039,-1092.06,0.00013698,2]
[351841178,1738812641049,-502.65415292,0.00013698,2]
[351841181,1738812641059,-500.0,0.00013698,2]
[351841182,1738812641068,-786.41,0.00013698,2]
[351841184,1738812641078,-500.0,0.00013698,2]
[351841187,1738812641087,-501.34361196,0.00013698,2]
[351841189,1738812641097,-500.0,0.00013698,2]
[351841191,1738812641107,-500.0,0.00013698,2]
[351841193,1738812641117,-500.0,0.00013698,2]
[351841194,1738812641126,-500.0,0.00013698,2]
[351841197,1738812641135,-500.0,0.00013698,2]
[351841198,1738812641144,-500.0,0.00013698,2]
[351841200,1738812641153,-500.0,0.00013698,2]
[351841202,1738812641163,-500.0,0.00013698,2]
[351841204,1738812641173,-500.0,0.00013698,2]
[351841206,1738812641182,-500.0,0.00013698,2]
[351841208,1738812641192,-1117.36,0.00013698,2]
[351841210,1738812641201,-500.0,0.00013698,2]
[351841212,1738812641210,-501.54808729,0.00013698,2]
[351841214,1738812641219,-500.0,0.00013698,2]
[351841216,1738812641229,-500.0,0.00013698,2]
[351841218,1738812641238,-647.42,0.00013698,2]
[351841220,1738812641247,-500.0,0.00013698,2]
[351841222,1738812641256,-500.0,0.00013698,2]
[351841224,1738812641266,-500.0,0.00013698,2]
[351841225,1738812641275,-500.0,0.00013698,2]
[351841226,1738812641284,-502.15990221,0.00013698,2]
[351841227,1738812641293,-500.0,0.00013698,2]
[351841228,1738812641302,-1434.7,0.00013698,2]
[351841229,1738812641311,-500.0,0.00013698,2]
[351841230,1738812641320,-624.67298155,0.00013698,2]
[351841231,1738812641330,-680.97,0.00013698,2]
[351841232,1738812641339,-1025.45,0.00013698,2]
[351841233,1738812641348,-502.78581981,0.00013698,2]
[351841234,1738812641357,-420.64790199,0.00013698,2]
[351841235,1738812641367,-500.0,0.00013698,2]
[351841236,1738812641376,-500.0,0.00013698,2]
[351841237,1738812641385,-500.0,0.00013698,2]
[351841238,1738812641395,-500.38924188,0.00013698,2]
[351841239,1738812641404,-500.0,0.00013698,2]
[351841240,1738812641413,-547.7,0.00013698,2]
[351841241,1738812641423,-500.0,0.00013698,2]
[351841242,1738812641429,-500.0,0.00013698,2]
[351841243,1738812641435,-500.0,0.00013698,2]
[351841244,1738812641441,-592.52,0.00013698,2]
[351841245,1738812641449,-3184.36,0.00013698,2]
[351841246,1738812641456,-500.0,0.00013698,2]
[351841247,1738812641465,-500.0,0.00013698,2]
[351841248,1738812641475,-1389.73,0.00013698,2]
[351841249,1738812641484,-500.0,0.00013698,2]
[351841250,1738812641493,-502.99163922,0.00013698,2]
[351841251,1738812641505,-581.47,0.00013698,2]
[351841252,1738812641514,-500.0,0.00013698,2]
[351841253,1738812641523,-502.87473744,0.00013698,2]
[351841254,1738812641532,-500.0,0.00013698,2]
[351841255,1738812641542,-909.35,0.00013698,2]
[351841256,1738812641552,-500.0,0.00013698,2]
[351841257,1738812641562,-500.0,0.00013698,2]
[351841258,1738812641572,-500.0,0.00013698,2]
[351841259,1738812641583,-500.0,0.00013698,2]
[351841260,1738812641593,-504.45507927,0.00013698,2]
[351841261,1738812641603,-500.0,0.00013698,2]
[351841262,1738812641613,-500.0,0.00013698,2]
[351841263,1738812641623,-1083.26,0.00013698,2]
[351841264,1738812641632,-500.0,0.00013698,2]
[351841265,1738812641642,-500.0,0.00013698,2]
[351841266,1738812641651,-1129.47,0.00013698,2]
[351841267,1738812641662,-501.83878558,0.00013698,2]
[351841268,1738812641672,-619.0,0.00013698,2]
[351841269,1738812641681,-501.92538751,0.00013698,2]
[351841270,1738812641691,-500.0,0.00013698,2]
[351841271,1738812641702,-500.86609483,0.00013698,2]
[351841272,1738812641714,-692.66,0.00013698,2]
[351841273,1738812641725,-500.0,0.00013698,2]
[351841274,1738812641736,-500.0,0.00013698,2]
[351841275,1738812641746,-501.70467411,0.00013698,2]
[351841276,1738812641757,-501.50530517,0.00013698,2]
[351841277,1738812641766,-500.0,0.00013698,2]
[351841278,1738812641776,-1264.89,0.00013698,2]
[351841279,1738812641791,-500.0,0.00013698,2]
[351841280,1738812641801,-500.0,0.00013698,2]
[351841281,1738812641811,-500.0,0.00013698,2]
[351841282,1738812641820,-521.94,0.00013698,2]
[351841283,1738812641830,-500.0,0.00013698,2]
[351841284,1738812641840,-500.0,0.00013698,2]
[351841285,1738812641850,-500.0,0.00013698,2]
[351841286,1738812641859,-500.0,0.00013698,2]
[351841287,1738812641869,-500.0,0.00013698,2]
[351841288,1738812641879,-500.0,0.00013698,2]
[351841289,1738812641888,-500.0,0.00013698,2]
[351841290,1738812641898,-500.0,0.00013698,2]
[351841291,1738812641907,-500.0,0.00013698,2]
[351841292,1738812641919,-500.0,0.00013698,2]
[351841293,1738812641932,-500.0,0.00013698,2]
[351841294,1738812641943,-457.44699786,0.00013698,2]
[351841295,1738812641954,-878.49,0.00013698,2]
[351841296,1738812641963,-500.0,0.00013698,2]
[351841297,1738812641974,-821.5,0.00013698,2]
[351841298,1738812641983,-512.85079039,0.00013698,2]
[351841299,1738812641992,-501.82668888,0.00013698,2]
[351841300,1738812642001,-501.02880602,0.00013698,2]
[351841301,1738812642010,-500.0,0.00013698,2]
[351841302,1738812642019,-780.43,0.00013698,2]
[351841303,1738812642028,-502.51670672,0.00013698,2]
[351841304,1738812642039,-500.0,0.00013698,2]
[351841305,1738812642050,-815.14,0.00013698,2]
[351841306,1738812642059,-500.0,0.00013698,2]
[351841307,1738812642070,-500.0,0.00013698,2]
[351841308,1738812642081,-1530.76,0.00013698,2]
[351841309,1738812642090,-500.0,0.00013698,2]
[351841310,1738812642100,-502.10503699,0.00013698,2]
[351841311,1738812642109,-502.19461125,0.00013698,2]
[351841312,1738812642119,-2235.24,0.00013698,2]
[351841313,1738812642129,-502.35344592,0.00013698,2]
[351841314,1738812642139,-167.87987857,0.00013698,2]
[351841315,1738812642149,-528.59,0.00013698,2]
[351841316,1738812642159,-810.0,0.00013698,2]
[351841317,1738812642169,-501.3,0.00013698,2]
[351841318,1738812642178,-683.18,0.00013698,2]
[351841319,1738812642187,-500.0,0.00013698,2]
[351841320,1738812642196,-501.39544041,0.00013698,2]
[351841321,1738812642205,-501.36750273,0.00013698,2]
[351841322,1738812642214,-512.45111641,0.00013698,2]
[351841323,1738812642224,-643.83,0.00013698,2]
[351841324,1738812642233,-500.0,0.00013698,2]
[351841325,1738812642242,-501.75561185,0.00013698,2]
[351841326,1738812642251,-500.0,0.00013698,2]
[351841327,1738812642260,-500.0,0.00013698,2]
[351841328,1738812642269,-1157.45,0.00013698,2]
[351841329,1738812642278,-645.55,0.00013698,2]
[351841330,1738812642288,-500.0,0.00013698,2]
[351841331,1738812642296,-500.0,0.00013698,2]
[351841332,1738812642306,-500.0,0.00013698,2]
[351841333,1738812642315,-500.0,0.00013698,2]
[351841334,1738812642324,-500.0,0.00013698,2]
[351841335,1738812642333,-500.0,0.00013698,2]
[351841336,1738812642342,-500.0,0.00013698,2]
[351841337,1738812642353,-505.52658195,0.00013698,2]
[351841338,1738812642362,-500.0,0.00013698,2]
[351841339,1738812642372,-500.0,0.00013698,2]
[351841340,1738812642381,-500.0,0.00013698,2]
[351841341,1738812642391,-500.0,0.00013698,2]
[351841342,1738812642401,-742.39,0.00013698,2]
[351841343,1738812642410,-629.2,0.00013698,2]
[351841344,1738812642420,-500.0,0.00013698,2]
[351841345,1738812642430,-500.0,0.00013698,2]
[351841346,1738812642439,-334.97371298,0.00013698,2]
[351841347,1738812642449,-500.0,0.00013698,2]
[351841348,1738812642458,-500.0,0.00013698,2]
[351841349,1738812642468,-500.0,0.00013698,2]
[351841350,1738812642478,-500.0,0.00013698,2]
[351841351,1738812642487,-501.1745909,0.00013698,2]
[351841352,1738812642497,-501.99195329,0.00013698,2]
[351841353,1738812642506,-622.75,0.00013698,2]
[351841354,1738812642516,-500.0,0.00013698,2]
[351841355,1738812642525,-536.55,0.00013698,2]
[351841356,1738812642535,-500.0,0.00013698,2]
[351841357,1738812642544,-500.0,0.00013698,2]
[351841358,1738812642556,-500.78690807,0.00013698,2]
[351841360,1738812642566,-501.33174425,0.00013698,2]
[351841361,1738812642575,-1000.0,0.00013698,2]
[351841362,1738812642585,-503.47801789,0.00013698,2]
[351841363,1738812642595,-500.0,0.00013698,2]
[351841364,1738812642605,-500.0,0.00013698,2]
[351841365,1738812642614,-500.0,0.00013698,2]
[351841366,1738812642624,-500.53716093,0.00013698,2]
[351841367,1738812642633,-500.90578574,0.00013698,2]
[351841368,1738812642644,-500.62441331,0.00013698,2]
[351841369,1738812642653,-502.19146056,0.00013698,2]
[351841370,1738812642662,-500.0,0.00013698,2]
[351841372,1738812642673,-500.0,0.00013698,2]
[351841374,1738812642682,-500.0,0.00013698,2]
[351841376,1738812642692,-684.14,0.00013698,2]
[351841378,1738812642701,-500.0,0.00013698,2]
[351841380,1738812642713,-629.53,0.00013698,2]
[351841381,1738812642721,-502.17294698,0.00013698,2]
[351841383,1738812642731,-500.0,0.00013698,2]
[351841384,1738812642740,-500.0,0.00013698,2]
[351841385,1738812642751,-500.0,0.00013698,2]
[351841386,1738812642760,-2124.22,0.00013698,2]
[351841387,1738812642770,-500.0,0.00013698,2]
[351841388,1738812642779,-500.0,0.00013698,2]
[351841389,1738812642788,-500.0,0.00013698,2]
[351841390,1738812642799,-502.2912482,0.00013698,2]
[351841391,1738812642808,-500.0,0.00013698,2]
[351841392,1738812642818,-500.0,0.00013698,2]
[351841393,1738812642827,-500.0,0.00013698,2]
[351841394,1738812642836,-7161.21,0.00013698,2]
[351841395,1738812642845,-500.0,0.00013698,2]
[351841396,1738812642855,-502.56704515,0.00013698,2]
[351841397,1738812642864,-500.0,0.00013698,2]
[351841398,1738812642873,-697.19,0.00013698,2]
[351841399,1738812642883,-502.28224242,0.00013698,2]
[351841400,1738812642893,-3507.68,0.00013698,2]
[351841401,1738812642903,-1087.34,0.00013698,2]
[351841402,1738812642913,-4587.3,0.00013698,2]
[351841403,1738812642924,-501.92399289,0.00013698,2]
[351841404,1738812642933,-501.23925094,0.00013698,2]
[351841405,1738812642942,-500.0,0.00013698,2]
[351841406,1738812642952,-500.0,0.00013698,2]
[351841407,1738812642961,-500.0,0.00013698,2]
[351841408,1738812642970,-500.0,0.00013698,2]
[351841409,1738812642980,-1852.0,0.00013698,2]
[351841410,1738812642989,-500.0,0.00013698,2]
[351841411,1738812642998,-500.0,0.00013698,2]
[351841412,1738812643008,-500.0,0.00013698,2]
[351841413,1738812643017,-500.0,0.00013698,2]
[351841414,1738812643026,-1780.91,0.00013698,2]
[351841415,1738812643035,-501.2948225,0.00013698,2]
[351841416,1738812643044,-500.0,0.00013698,2]
[351841417,1738812643053,-911.53,0.00013698,2]
[351841418,1738812643063,-500.0,0.00013698,2]
[351841419,1738812643072,-913.79,0.00013698,2]
[351841420,1738812643082,-1181.72,0.00013698,2]
[351841421,1738812643091,-500.0,0.00013698,2]
[351841422,1738812643100,-833.24,0.00013698,2]
[351841423,1738812643109,-500.0,0.00013698,2]
[351841424,1738812643119,-303.7465284,0.00013698,2]
[351841425,1738812643127,-500.0,0.00013698,2]
[351841426,1738812643137,-4294.87,0.00013698,2]
[351841427,1738812643145,-500.0,0.00013698,2]
[351841428,1738812643153,-500.0,0.00013698,2]
[351841429,1738812643164,-500.0,0.00013698,2]
[351841430,1738812643174,-500.0,0.00013698,2]
[351841431,1738812643184,-1210.64,0.00013698,2]
[351841432,1738812643194,-502.11845928,0.00013698,2]
[351841433,1738812643204,-501.63020061,0.00013698,2]
[351841434,1738812643213,-500.0,0.00013698,2]
[351841436,1738812643351,-2218.82,0.00013698,2]
[351841437,1738812643361,-5997.98,0.00013698,2]
[351841438,1738812643370,-502.90670288,0.00013698,2]
[351841439,1738812643379,-500.0,0.00013698,2]
[351841440,1738812643390,-727.66,0.00013698,2]
[351841441,1738812643400,-590.68,0.00013698,2]
[351841442,1738812643410,-500.0,0.00013698,2]
[351841443,1738812643421,-516.6114918,0.00013698,2]
[351841444,1738812643430,-1756.85,0.00013698,2]
[351841445,1738812643440,-504.8676111,0.00013698,2]
[351841446,1738812643450,-504.96610297,0.00013698,2]
[351841447,1738812643460,-500.0,0.00013698,2]
[351841448,1738812643473,-500.0,0.00013698,2]
[351841449,1738812643484,-500.0,0.00013698,2]
[351841450,1738812643495,-500.0,0.00013698,2]
[351841451,1738812643505,-500.67921638,0.00013698,2]
[351841452,1738812643517,-915.02,0.00013698,2]
[351841453,1738812643526,-613.44,0.00013698,2]
[351841454,1738812643535,-554.21,0.00013698,2]
[351841455,1738812643544,-502.03837473,0.00013698,2]
[351841456,1738812643555,-500.0,0.00013698,2]
[351841457,1738812643565,-25729.08,0.00013698,2]
[351841458,1738812643575,-501.21147551,0.00013698,2]
[351841459,1738812643586,-500.0,0.00013698,2]
[351841460,1738812643596,-801.86,0.00013698,2]
[351841461,1738812643605,-501.357401,0.00013698,2]
[351841462,1738812643614,-500.0,0.00013698,2]
[351841463,1738812643623,-500.0,0.00013698,2]
[351841464,1738812643632,-501.79564139,0.00013698,2]
[351841465,1738812643642,-500.0,0.00013698,2]
[351841466,1738812643651,-500.0,0.00013698,2]
[351841467,1738812643660,-500.0,0.00013698,2]
[351841468,1738812643670,-503.51116766,0.00013698,2]
[351841469,1738812643679,-500.0,0.00013698,2]
[351841470,1738812643689,-1202.38,0.00013698,2]
[351841471,1738812643698,-1946.4,0.00013698,2]
[351841472,1738812643708,-500.0,0.00013698,2]
[351841473,1738812643720,-2268.62,0.00013698,2]
[351841474,1738812643729,-500.0,0.00013698,2]
[351841475,1738812643738,-500.0,0.00013698,2]
[351841476,1738812643748,-501.39598792,0.00013698,2]
[351841477,1738812643758,-500.0,0.00013698,2]
[351841478,1738812643767,-276.86,0.00013698,2]
[351841479,1738812643777,-2197.56,0.00013698,2]
[351841480,1738812643788,-596.26,0.00013698,2]
[351841481,1738812643797,-500.0,0.00013698,2]
[351841482,1738812643806,-500.0,0.00013698,2]
[351841483,1738812643816,-500.0,0.00013698,2]
[351841484,1738812643825,-500.0,0.00013698,2]
[351841485,1738812643834,-5012.69,0.00013698,2]
[351841486,1738812643843,-500.0,0.00013698,2]
[351841487,1738812643853,-76418.65,0.00013698,2]
[351841488,1738812643862,-500.0,0.00013698,2]
[351841489,1738812643871,-500.0,0.00013698,2]
[351841490,1738812643881,-2112.01,0.00013698,2]
[351841491,1738812643891,-501.38932267,0.00013698,2]
[351841492,1738812643901,-2112.01,0.00013698,2]
[351841493,1738812643911,-2112.01,0.00013698,2]
[351841494,1738812643922,-2112.01,0.00013698,2]
[351841495,1738812643931,-2112.01,0.00013698,2]
[351841496,1738812643942,-2112.01,0.00013698,2]
[351841497,1738812643951,-500.0,0.00013698,2]
[351841498,1738812643960,-2112.01,0.00013698,2]
[351841499,1738812643969,-2112.01,0.00013698,2]
[351841500,1738812643979,-508.00493297,0.00013698,2]
[351841501,1738812643988,-2112.01,0.00013698,2]
[351841502,1738812643997,-2112.01,0.00013698,2]
[351841503,1738812644006,-2112.01,0.00013698,2]
[351841504,1738812644015,-2112.01,0.00013698,2]
[351841505,1738812644024,-2112.01,0.00013698,2]
[351841506,1738812644034,-2112.01,0.00013698,2]
[351841507,1738812644043,-2112.01,0.00013698,2]
[351841508,1738812644053,-808.66,0.00013698,2]
[351841509,1738812644062,-2112.01,0.00013698,2]
[351841510,1738812644072,-2112.01,0.00013698,2]
[351841511,1738812644082,-2112.01,0.00013698,2]
[351841512,1738812644091,-9900.92,0.00013698,2]
[351841513,1738812644101,-2112.01,0.00013698,2]
[351841514,1738812644110,-2112.01,0.00013698,2]
[351841515,1738812644120,-2112.01,0.00013698,2]
[351841516,1738812644130,-2112.01,0.00013698,2]
[351841517,1738812644140,-2112.01,0.00013698,2]
[351841518,1738812644150,-500.0,0.00013698,2]
[351841519,1738812644159,-2112.16,0.00013698,2]
[351841520,1738812644169,-4016.11,0.00013698,2]
[351841521,1738812644179,-503.57287931,0.00013698,2]
[351841522,1738812644188,-500.79847976,0.00013698,2]
[351841523,1738812644198,-500.6722538,0.00013698,2]
[351841524,1738812644208,-1149.61,0.00013698,2]
[351841525,1738812644219,-500.0,0.00013698,2]
[351841526,1738812644229,-4299.65,0.00013698,2]
[351841527,1738812644241,-500.0,0.00013698,2]
[351841528,1738812644252,-929.85,0.00013698,2]
[351841529,1738812644262,-502.42964437,0.00013698,2]
[351841530,1738812644272,-500.75548031,0.00013698,2]
[351841531,1738812644283,-2434.92,0.00013698,2]
[351841532,1738812644292,-500.0,0.00013698,2]